[Event "87th Tata Steel Masters 2025"]
[White "Fedoseev,Vladimir"]
[Black "Keymer,Vincent"]
[Site "Wijk aan Zee"]
[Round "7.6"]
[Annotator "TA"]
[Result "1-0"]
[Date "2025.01.25"]
[WhiteElo "2717"]
[BlackElo "2733"]
[PlyCount "101"]
[TimeControl "60"]

{[%evp 14,101,27,21,8,-20,-22,-22,-8,-10,-8,-7,-16,-14,-12,-8,-10,-34,-15,-14,20,19,30,9,23,16,49,50,57,0,0,0,0,0,0,0,76,72,162,158,177,174,177,179,174,89,90,81,83,83,93,78,73,47,115,103,303,171,170,183,177,169,154,68,91,82,171,192,225,226,234,227,212,220,218,176,315,243,294,303,300,297,295,286,1377,1102,29987,29988,29993,29994]} 1. d4 {[%emt 0:0:33]} Nf6 {[%emt 0:0:4]} 2. c4 {[%emt 0:0:7]} e6 {[%emt 0:0:4]} 3. Nf3 {[%emt 0:0:7]} d5 {[%emt 0:0:4]} 4. Nc3 {[%emt 0:0:9]} c6 {[%emt 0:0:4]} 5. Bg5 {[%emt 0:0:16]} h6 {[%emt 0:0:5]} 6. Bxf6 {[%emt 0:0:13]} Qxf6 {[%emt 0:0:5]} 7. e3 {[%emt 0:0:7]} Nd7 {[%emt 0:0:17]} 8. Be2 $1 {[%emt 0:0:31][%mdl 4] is more profitable than 8.Bd3 at the moment.} Qe7 {[%emt 0:0:33] D43: Semi-Slav: 5 Bg5 h6.} 9. c5 $146 {[%emt 0:12:41]} (9. O-O g6 10. c5 Bg7 11. e4 O-O 12. Rc1 a5 13. Re1 b6 14. exd5 exd5 15. Bf1 Qd8 16. cxb6 Nxb6 {½-½ Grau Ribas,J (1927)-Van Hattum,L EU-ch SC-OR/496 email 2022} )g5 {[%emt 0:12:52]} 10. b4 {[%emt 0:11:55]} Bg7 {[%emt 0:1:4] The position is equal.} 11. Rc1 {[%emt 0:0:5]} O-O {[%emt 0:13:9]} 12. b5 {[%emt 0:6:40]} g4 {[%emt 0:18:36]} 13. Nd2 {[%emt 0:3:24]} e5 {[%emt 0:1:10]} 14. Nb3 {[%emt 0:7:42]} exd4 {[%emt 0:4:43]} 15. Nxd4 {[%emt 0:10:56]} Ne5 {[%emt 0:1:0]} (15... Qxc5 $6 16. Bxg4 Bxd4 17. exd4 Qe7+ 18. Ne2 $14 )16. O-O {[%emt 0:0:54]} Qxc5 {[%emt 0:12:58]} 17. bxc6 {[%emt 0:8:16] White sacrificed a pawn} bxc6 {[%emt 0:0:5] [#]} 18. Ncb5 $1 {[%emt 0:1:8] Inhibits Qd6.} Qb6 {[%emt 0:2:34]} 19. Nd6 {[%emt 0:0:31][%mdl 1024] White has compensation.} Bd7 {[%emt 0:5:58]} 20. N4f5 {[%emt 0:1:48] A dynamic duo of knights.} h5 {[%emt 0:4:26]} 21. f3 {[%emt 0:1:9]} ({White should play} 21. Kh1 $14 )Rfb8 $1 $11 {[%emt 0:6:10]} 22. Kh1 {[%emt 0:13:16]} Bf8 {[%emt 0:0:44]} (22... Bxf5 23. Nxf5 Re8 24. fxg4 $16 )23. f4 {[%emt 0:2:45]} Ng6 {[%emt 0:0:58] ...Bxd6 would now be deadly.} 24. e4 $1 {[%emt 0:0:26]} Qb4 {[%emt 0:8:18]} (24... Bxd6 $11 25. Nxd6 Qb2 )25. e5 $1 $16 {[%emt 0:3:58]} Qa3 {[%emt 0:9:5]} (25... Qb2 $16 {is a better defense.} )26. Ng3 $1 $18 {[%emt 0:2:45]} Bxd6 {[%emt 0:0:6]} (26... Qxa2 $2 27. Nxh5 Bxd6 28. Nf6+ (28. exd6 Qb2 $18 )Kh8 29. Nxd7 $18 (29. exd6 Bf5 $18 ))27. exd6 {[%emt 0:0:7]} Qxd6 {[%emt 0:4:31]} 28. Nxh5 {[%emt 0:0:38]} Rb4 {[%emt 0:2:34]} 29. Bxg4 {[%emt 0:3:50]} (29. Qd2 $1 $18 )f5 $16 {[%emt 0:1:6]} 30. Bf3 {[%emt 0:0:51]} Rf8 {[%emt 0:1:25][%cal Yd7e8]} 31. a3 {[%emt 0:2:48]} Rb7 {[%emt 0:0:1]} 32. Re1 {[%emt 0:1:9][%cal Yf1e1,Ye1e3,Ye3g3,Yg3g5][%mdl 32] Wards off Be8} Rf7 {[%emt 0:1:6]} (32... Nxf4 $2 33. Nxf4 Qxf4 34. Bxd5+ Kg7 35. Bc4 $18 (35. Bxc6 Rh8 $18 ))33. Qd4 {[%emt 0:0:58] Prevents Nxf4.} Nf8 {[%emt 0:0:28]} (33... Rb3 $14 )34. Re3 {[%emt 0:1:44] White is much more active.} Nh7 $2 {[%emt 0:0:26]} (34... Rb5 $16 35. h3 (35. Qxa7 Ne6 $16 )Rb8 )35. Be2 {[%emt 0:4:56]} (35. Bxd5 $142 cxd5 36. Rg3+ Kf8 37. Qh8+ Ke7 38. Re1+ Be6 39. Rg7 (39. Ng7 Nf8 $18 ))Nf6 $18 {[%emt 0:0:16]} 36. Rg3+ $1 {[%emt 0:0:15] White attacks} Kh7 {[%emt 0:0:34] [#]} 37. Rg5 $1 {[%emt 0:1:39]} c5 {[%emt 0:0:24][%cal Yc6c5,Yc5c4][%mdl 32] [#]} 38. Nxf6+ {[%emt 0:2:8]} (38. Qxc5 $2 Qxc5 39. Nxf6+ Rxf6 $19 )(38. Qf2 $1 $16 {[%cal Rf2h4] Intending Qh4 and mate.} Ne4 39. Qh4 )Rxf6 $14 {[%emt 0:0:1][%cal Yf7f6,Yf6h6,Yh6h7][%mdl 32]} 39. Qe3 {[%emt 0:1:13][%cal Ye2d3]} (39. Qxc5 $2 Qxc5 40. Rg1 Rh6 $19 (40... Qxa3 $2 41. Bf3 $19 ))Rb8 {[%emt 0:1:8]} (39... Rg6 $16 )40. Bd3 $18 {[%emt 0:1:29]} (40. Rxc5 Qe6 41. Qg1 Qxe2 $17 )(40. Qxc5 $2 {too greedy.} Qxc5 41. Rh5+ Rh6 42. Rxh6+ Kxh6 $19 )c4 {[%emt 0:0:44]} 41. Qh3+ {[%emt 0:51:3]} Rh6 {[%emt 0:50:4]} 42. Bxf5+ {[%emt 0:0:5]} Bxf5 {[%emt 0:0:0]} 43. Qxf5+ {[%emt 0:0:0]} Kh8 {[%emt 0:0:0]} 44. h3 {[%emt 0:0:0]} ({Not} 44. Qxd5 Qxf4 45. Qe5+ (45. Qxc4 $2 Qxh2# )Qxe5 46. Rxe5 Rc6 $11 )Rd8 {[%emt 0:0:0]} (44... Qe6 $142 45. Qxe6 (45. Qxd5 Rxh3+ 46. gxh3 Qxh3+ 47. Kg1 Qe3+ 48. Kh1 Qh3+ 49. Kg1 Qe3+ 50. Kh1 Qh3+ $11 )Rxe6 46. Rh5+ (46. Rxd5 Rc6 $18 )Kg7 47. Rxd5 Rc6 48. Rg5+ Kf7 )45. Rd1 $40 {[%emt 0:0:0][%mdl 128] White attacks with force.} d4 {[%emt 0:0:0]} 46. Qf7 {[%emt 0:0:0][%csl Ya7,Yc4]} Rh7 {[%emt 0:0:0] Repels Qg7+} 47. Qxc4 {[%emt 0:0:0]} Qxf4 {[%emt 0:0:0]} 48. Qc5 {[%emt 0:0:0]} Qe4 $2 {[%emt 0:0:0] [#]} (48... Rh6 49. Rd3 Re8 (49... Qf1+ $2 50. Kh2 $18 )50. Qxd4+ Qxd4 51. Rxd4 Re7 )49. Rd3 $1 {[%emt 0:0:0][%mdl 512] Black must now prevent Rdg3.} a6 {[%emt 0:0:0]} (49... Qe1+ 50. Kh2 )50. Rdg3 {[%emt 0:0:0]} Qf4 {[%emt 0:0:0]} 51. Rf3 {[%emt 0:0:0] Weighted Error Value: White=0.14 (very precise) /Black=0.51  Loses game:     	---       	Black=1      Mistake:       	White=4     	Black=6      Inaccurate:     	White=2     	Black=3      OK:         	White=16    	Black=15     Best:        	White=2     	Black=5      Strong:       	White=4     	Black=1      Brilliant:      	White=2     	---} 1-0

[Event "87th Tata Steel Masters 2025"]
[White "Warmerdam,Max"]
[Black "Erigaisi,Arjun Kumar"]
[Site "Wijk aan Zee"]
[Round "7.7"]
[Annotator "TA"]
[Result "1-0"]
[Date "2025.01.25"]
[WhiteElo "2646"]
[BlackElo "2801"]
[PlyCount "75"]
[TimeControl "60"]

{[%evp 9,75,22,18,23,20,16,53,56,59,57,50,42,41,40,59,19,70,96,114,117,102,99,94,93,93,87,87,90,156,148,182,166,175,166,202,170,221,224,261,238,253,263,260,250,269,248,252,256,561,227,427,443,410,423,809,806,823,789,1274,1274,1203,1066,29981,29984,29984,1150,29985,29986]} 1. e4 {[%emt 0:0:4]} c5 {[%emt 0:0:20]} 2. Nf3 {[%emt 0:0:8]} d6 {[%emt 0:0:24]} 3. c3 {[%emt 0:0:7]} Nf6 {[%emt 0:0:23]} 4. h3 {[%emt 0:0:6]} Bd7 {[%emt 0:3:55]} 5. Bd3 {[%emt 0:3:41]} Nc6 {[%emt 0:15:23]} 6. Bc2 {[%emt 0:1:54]} Rc8 {[%emt 0:0:13]} 7. O-O {[%emt 0:6:56]} g5 {[%emt 0:7:55][%cal Yg7g5,Yg5g4][%mdl 32]} 8. d4 $1 {[%emt 0:14:47] d5 would now be deadly. White is slightly better.} g4 {[%emt 0:4:20]} 9. d5 {[%emt 0:4:26]} gxf3 {[%emt 0:2:37]} 10. dxc6 {[%emt 0:0:56]} Bxc6 {[%emt 0:0:7]} 11. Qxf3 {[%emt 0:0:7]} Rg8 {[%emt 0:0:7] Wards off Bg5} 12. Rd1 {[%emt 0:4:47]} e6 {[%emt 0:9:35]} (12... Qd7 $11 )13. Nd2 $14 {[%emt 0:13:51][%cal Yb1d2,Yd2f1,Yf1g3][%mdl 32]} b5 {[%emt 0:14:2] Inhibits Nc4.} 14. a4 {[%emt 0:6:18] aiming for axb5.} a6 {[%emt 0:0:5]} 15. axb5 {[%emt 0:1:12]} axb5 {[%emt 0:0:4]} 16. Nf1 {[%emt 0:6:7]} Nd7 {[%emt 0:5:41]} 17. Ng3 {[%emt 0:7:6]} Ne5 {[%emt 0:2:51]} 18. Qh5 {[%emt 0:1:50]} Rg7 {[%emt 0:15:38]} (18... Qf6 $142 )19. Kh2 $16 {[%emt 0:13:55]} Qf6 {[%emt 0:5:44]} 20. f4 {[%emt 0:0:0]} Nd7 {[%emt 0:0:19]} 21. Qe2 {[%emt 0:0:0] And now Nh5 would win.} Qd8 {[%emt 0:1:53]} 22. e5 {[%emt 0:5:3]} Qh4 {[%emt 0:3:26] [#]} (22... dxe5 $142 23. Be4 (23. fxe5 Qh4 $11 )Qc7 )23. Ne4 $1 $18 {[%emt 0:2:0] Active counter play!} Bxe4 {[%emt 0:0:7]} 24. Bxe4 {[%emt 0:1:38]} d5 {[%emt 0:0:42]} 25. Qxb5 {[%emt 0:2:32] Ra7 is the strong threat.} c4 {[%emt 0:0:6]} 26. Ra7 {[%emt 0:0:58]} Rd8 {[%emt 0:0:7] [#]} 27. Bxd5 {[%emt 0:4:18][%mdl 512]} exd5 {[%emt 0:0:44]} 28. Qxd5 $40 {[%emt 0:0:7][%mdl 128] White attacks with force.} Qe7 {[%emt 0:0:17]} (28... Nb8 {is tougher.} 29. Qxd8+ (29. Qb5+ Nd7 $11 )Qxd8 30. Rxd8+ Kxd8 )29. Ra8 {[%emt 0:0:45]} ({Not} 29. Qxc4 Qc5 30. Qxc5 Bxc5 $16 )(29. Be3 $142 )Rxa8 $2 {[%emt 0:4:21]} (29... Qe6 {keeps fighting.} )30. Qxa8+ {[%emt 0:0:4]} Qd8 {[%emt 0:0:5]} 31. Qb7 {[%emt 0:2:52]} Bc5 {[%emt 0:0:7] Repels Be3} (31... Rg6 $142 32. Be3 Re6 )32. f5 {[%emt 0:0:49]} Bb6 {[%emt 0:2:1]} 33. Bh6 {[%emt 0:0:49]} Rg8 {[%emt 0:0:5]} 34. Kh1 {[%emt 0:3:52] Threatens to win with e6.} ({Stronger than} 34. Rd6 Bc7 $11 )Qc7 {[%emt 0:1:10]} 35. Qd5 {[%emt 0:0:19] White wants to mate with e6.} Rg3 {[%emt 0:4:34]} 36. e6 {[%emt 0:2:3]} fxe6 {[%emt 0:0:31]} 37. Qxe6+ {[%emt 0:0:17]} Kd8 {[%emt 0:0:5] [#]} 38. Bf4 $1 {[%emt 0:0:7][%mdl 512] Weighted Error Value: White=0.26 (precise) /Black=0.66.  Mistake:       	White=1     	Black=6      Inaccurate:     	White=1     	Black=1      OK:         	White=11    	Black=9      Best:        	White=1     	Black=2      Strong:       	White=2     	---        Brilliant:      	White=1     	---} 1-0

[Event "87th Tata Steel Masters 2025"]
[White "Warmerdam,Max"]
[Black "Wei,Yi"]
[Site "Wijk aan Zee"]
[Round "8.1"]
[Annotator "TA"]
[Result "0-1"]
[Date "2025.01.26"]
[WhiteElo "2646"]
[BlackElo "2751"]
[PlyCount "126"]
[TimeControl "60"]

{[%evp 15,126,0,0,0,0,0,0,0,0,0,0,0,0,0,0,0,1,1,0,0,13,7,0,0,0,7,6,16,11,7,10,6,2,-8,-11,-14,0,-12,-2,-3,-4,-12,0,0,0,-4,0,0,0,0,0,-10,2,0,0,0,10,0,28,0,0,0,0,0,0,0,0,0,0,0,0,0,0,0,0,-11,-14,-11,-15,-12,-6,-12,-8,-47,-45,-157,-147,-212,-208,-202,-203,-438,-436,-438,-418,-411,-412,-466,-476,-515,-526,-508,-518,-545,-545,-817,-1050,-1055,-1055,-29974,-29975,-29982,-29983]} 1. e4 {[%emt 0:0:5]} e5 {[%emt 0:0:6]} 2. Nf3 {[%emt 0:0:6]} Nc6 {[%emt 0:0:6]} 3. d4 {[%emt 0:0:5]} exd4 {[%emt 0:0:12]} 4. Nxd4 {[%emt 0:0:6]} Nf6 {[%emt 0:0:13]} 5. Nxc6 {[%emt 0:0:9]} bxc6 {[%emt 0:0:5]} 6. Bd3 {[%emt 0:0:6]} d5 {[%emt 0:1:29]} 7. exd5 {[%emt 0:0:14]} cxd5 {[%emt 0:0:7]} 8. O-O {[%emt 0:0:5]} Be7 {[%emt 0:0:8]} 9. h3 {[%emt 0:0:11] C45: Scotch Game.} O-O {[%emt 0:0:12]} 10. Re1 {[%emt 0:0:5]} c5 {[%emt 0:5:10][%cal Yc7c5,Yc5c4][%mdl 32]} 11. b3 {[%emt 0:0:45] The position is equal.} Bb7 {[%emt 0:4:3]} 12. Nc3 {[%emt 0:0:33]} c4 $5 $146 {[%emt 0:1:3][%mdl 8] New and interesting.} (12... Ne4 13. Bxe4 dxe4 14. Bb2 f5 15. Qe2 Bf6 16. Rad1 Qe8 17. Ba3 Bxc3 18. Qc4+ Rf7 19. Qxc3 {½-½ Warmerdam,M (2608)-Santos Ruiz,M (2603) EU-chT 23rd Terme Catez 2021 (9.4)} )13. Bf1 {[%emt 0:0:34]} d4 {[%emt 0:0:13] Wards off Be3} 14. Nb5 {[%emt 0:0:28]} Bb4 {[%emt 0:0:9]} 15. Bd2 {[%emt 0:0:16]} Bc5 {[%emt 0:0:6]} 16. Re5 {[%emt 0:0:18]} Ne4 {[%emt 0:0:30] Hoping for ...Qf6.} 17. Rxc5 $1 {[%emt 0:5:16]} Qf6 {[%emt 0:0:27] [#]} 18. Be1 {[%emt 0:4:11]} Nxc5 {[%emt 0:0:28]} 19. Qxd4 {[%emt 0:0:30]} Qxd4 {[%emt 0:27:0]} 20. Nxd4 {[%emt 0:2:40]} Rfd8 {[%emt 0:5:33]} 21. Nf5 {[%emt 0:28:37]} cxb3 {[%emt 0:9:45]} 22. axb3 {[%emt 0:0:16]} a6 {[%emt 0:0:23]} 23. Bc4 {[%emt 0:7:12]} Ne6 {[%emt 0:8:36]} 24. Bxe6 {[%emt 0:21:17]} fxe6 {[%emt 0:0:4]} 25. Ne3 {[%emt 0:0:4]} Rac8 {[%emt 0:6:41]} 26. Ra4 {[%emt 0:2:58]} Rc5 {[%emt 0:0:42]} 27. Bb4 {[%emt 0:5:27]} Re5 {[%emt 0:1:21]} 28. Bc3 {[%emt 0:2:6] Against Rd4} Re4 {[%emt 0:1:20]} 29. Ra2 {[%emt 0:4:4]} Rf4 {[%emt 0:4:52]} 30. Ra5 {[%emt 0:7:15]} h6 {[%emt 0:2:36]} 31. Kf1 {[%emt 0:4:52]} Bc6 {[%emt 0:7:21]} 32. Kg1 {[%emt 0:1:36]} Bb7 {[%emt 0:1:26]} 33. Kf1 {[%emt 0:0:3]} Kh7 {[%emt 0:0:11]} 34. Ke2 {[%emt 0:3:33]} Rf7 {[%emt 0:1:0]} 35. f3 {[%emt 0:1:51]} Rc7 {[%emt 0:2:0]} 36. Be1 {[%emt 0:2:4]} Rcd7 {[%emt 0:3:2]} 37. Bb4 {[%emt 0:3:5][%mdl 1024] White has compensation.} Rb8 {[%emt 0:2:2][%cal Yb7f3]} 38. Bc3 {[%emt 0:0:27]} Rc8 {[%emt 0:1:32]} 39. Bb4 {[%emt 0:1:32]} Rc6 {[%emt 0:0:40]} 40. Bc5 {[%emt 0:4:23]} Bc8 {[%emt 0:13:57]} 41. Ba3 $1 {[%emt 0:18:19]} Rb7 {[%emt 0:2:15]} 42. Bb2 {[%emt 0:1:49]} Bd7 {[%emt 0:1:45]} 43. Ra3 {[%emt 0:2:51]} Be8 {[%emt 0:8:15]} 44. Bd4 {[%emt 0:1:56]} Bf7 {[%emt 0:0:26]} 45. Ra2 {[%emt 0:7:50]} Rb4 {[%emt 0:10:53]} 46. Bb2 {[%emt 0:1:18]} Bg6 {[%emt 0:3:53]} 47. Kd2 {[%emt 0:1:57]} Rb5 {[%emt 0:0:47]} 48. Ra4 {[%emt 0:4:10]} Rb7 {[%emt 0:0:35]} 49. Bd4 {[%emt 0:8:33]} Be8 {[%emt 0:2:42]} 50. Nc4 {[%emt 0:4:24] [#] Dodges Rd6} (50. Ke1 $15 )e5 $1 $17 {[%emt 0:1:3]} 51. Nxe5 {[%emt 0:2:46] [#]} (51. Bxe5 $17 {might work better.} Rg6 52. Ra5 Rxg2+ 53. Kc1 )Rd6 $1 $19 {[%emt 0:0:4]} ({Worse is} 51... Rg6 52. Nxg6 Bxa4 53. Ne5 $11 )52. Rc4 {[%emt 0:0:3]} Bb5 {[%emt 0:0:5]} 53. Rb4 {[%emt 0:0:5]} (53. Kd3 )a5 {[%emt 0:0:24]} 54. Rxb5 {[%emt 0:0:4]} Rxb5 {[%emt 0:0:5]} 55. Ke3 {[%emt 0:0:38]} Rbd5 {[%emt 0:0:35]} 56. Bc3 {[%emt 0:1:18] [#]} a4 $1 {[%emt 0:0:59]} 57. bxa4 {[%emt 0:0:39]} (57. Nc4 Re6+ )Rc5 {[%emt 0:0:4]} 58. Bd4 {[%emt 0:0:39]} Rxc2 {[%emt 0:0:5]} 59. g4 {[%emt 0:0:30]} Ra2 {[%emt 0:0:41]} 60. f4 {[%emt 0:0:37]} Rxa4 {[%emt 0:0:21]} 61. Bc5 {[%emt 0:15:29]} Rd5 {[%emt 0:15:6]} 62. Be7 {[%emt 0:0:18] [#]} g5 $1 {[%emt 0:0:6]} 63. Nd3 {[%emt 0:0:25]} (63. Bf6 gxf4+ )gxf4+ {[%emt 0:0:5] Weighted Error Value: White=0.30/Black=0.02 (flawless)   Mistake:       	White=3     	---        Inaccurate:     	White=3     	Black=1      OK:         	White=19    	Black=22     Best:        	White=1     	Black=4      Strong:       	White=2     	Black=2      Brilliant:      	---       	Black=1} 0-1

[Event "87th Tata Steel Masters 2025"]
[White "Harikrishna,Pentala"]
[Black "Giri,Anish"]
[Site "Wijk aan Zee"]
[Round "8.2"]
[Annotator "TA"]
[Result "1/2-1/2"]
[Date "2025.01.26"]
[WhiteElo "2695"]
[BlackElo "2731"]
[PlyCount "60"]
[TimeControl "60"]

{[%evp 17,60,-7,0,-12,9,15,7,7,12,-2,0,-25,-26,-17,-15,-30,-16,-39,-29,-31,-27,-26,0,-36,0,-5,0,0,0,0,0,0,0,0,0,0,0,0,0,0,0,0,0,0,0]} 1. e4 {[%emt 0:0:7]} e5 {[%emt 0:0:4]} 2. Nf3 {[%emt 0:0:8]} Nc6 {[%emt 0:0:4]} 3. Bb5 {[%emt 0:0:12]} a6 {[%emt 0:0:4]} 4. Ba4 {[%emt 0:0:9]} Nf6 {[%emt 0:0:3]} 5. O-O {[%emt 0:0:14]} b5 {[%emt 0:0:4]} 6. Bb3 {[%emt 0:0:10]} Bc5 {[%emt 0:0:2]} 7. c3 {[%emt 0:1:31]} d6 {[%emt 0:0:12]} 8. d4 {[%emt 0:0:7]} Bb6 {[%emt 0:0:5]} 9. h3 {[%emt 0:4:5]} O-O {[%emt 0:2:56]} 10. Re1 {[%emt 0:5:8] 10.Be3 is the modern continuation. C78: Ruy Lopez: Archangelsk and Möller Defences.} Rb8 {[%emt 0:3:23]} 11. Be3 {[%emt 0:2:49]} Re8 {[%emt 0:2:9]} 12. Nbd2 {[%emt 0:5:44]} h6 {[%emt 0:0:25]} 13. dxe5 {[%emt 0:2:50]} Nxe5 {[%emt 0:11:4]} 14. Bc2 $146 {[%emt 0:4:47] Inhibits Nd3.} (14. Nxe5 dxe5 15. Nf1 Bxe3 16. Nxe3 Bb7 17. f3 Qe7 18. Qe2 Nh5 19. Rad1 Nf4 20. Qf2 {1-0 Murzin,V (2612)-Lobanov,S (2547) RUS-ch Higher League 76th 2023 (5)} )Bxe3 {[%emt 0:3:53]} 15. Rxe3 {[%emt 0:0:11] A sharp opening} c5 {[%emt 0:0:4]} 16. Re1 {[%emt 0:7:40]} Bb7 {[%emt 0:7:43]} 17. a4 {[%emt 0:3:13]} Ng6 {[%emt 0:4:17]} 18. axb5 {[%emt 0:9:4]} axb5 {[%emt 0:0:5]} 19. b4 {[%emt 0:2:47]} Qb6 {[%emt 0:13:18]} 20. bxc5 {[%emt 0:5:17]} Qxc5 {[%emt 0:5:46]} 21. Rb1 {[%emt 0:0:39] The position is equal.} d5 {[%emt 0:7:39]} 22. e5 {[%emt 0:4:6]} Ne4 {[%emt 0:0:5]} 23. Bxe4 {[%emt 0:1:59]} dxe4 {[%emt 0:0:4]} 24. Nxe4 {[%emt 0:0:34]} Bxe4 {[%emt 0:0:3]} 25. Rxe4 {[%emt 0:0:8]} Nxe5 {[%emt 0:0:36]} 26. Nxe5 {[%emt 0:12:40]} Rxe5 {[%emt 0:0:5]} 27. Rxe5 {[%emt 0:0:22]} Qxe5 $11 {[%emt 0:0:2] KQR-KQR} 28. Qd3 {[%emt 0:0:58]} Rc8 {[%emt 0:0:41]} 29. Qxb5 {[%emt 0:0:9]} Qxb5 {[%emt 0:0:2]} 30. Rxb5 {[%emt 0:0:9]} Rxc3 {[%emt 0:0:1] Weighted Error Value: White=0.07 (flawless) /Black=0.09 (flawless)   Inaccurate:     	White=1     	Black=2      OK:         	White=6     	Black=6      Best:        	---       	Black=1} 1/2-1/2

[Event "87th Tata Steel Masters 2025"]
[White "Abdusattorov,Nodirbek"]
[Black "Fedoseev,Vladimir"]
[Site "Wijk aan Zee"]
[Round "8.3"]
[Annotator "TA"]
[Result "1/2-1/2"]
[Date "2025.01.26"]
[WhiteElo "2768"]
[BlackElo "2717"]
[PlyCount "151"]
[TimeControl "60"]

{[%evp 17,151,33,30,39,38,46,35,35,31,33,15,27,27,18,22,14,5,16,27,32,54,58,49,51,61,20,22,25,27,28,29,31,21,17,21,21,16,0,22,7,10,10,23,20,15,12,20,0,0,0,7,0,0,0,14,0,0,0,0,0,14,0,0,0,0,0,0,0,0,0,0,0,0,0,0,0,0,0,0,0,0,0,0,0,0,0,0,0,0,0,0,0,0,0,0,0,0,0,0,0,0,0,0,0,0,0,0,0,0,0,0,0,0,0,0,0,0,0,0,0,0,0,0,0,0,0,0,0,0,0,0,0,0,0,0,0]} 1. e4 {[%emt 0:0:5]} e5 {[%emt 0:1:34]} 2. Nf3 {[%emt 0:0:11]} Nf6 {[%emt 0:1:23]} 3. Nxe5 {[%emt 0:0:55]} d6 {[%emt 0:0:9]} 4. Nf3 {[%emt 0:0:8]} Nxe4 {[%emt 0:0:7]} 5. d4 {[%emt 0:0:18]} d5 {[%emt 0:0:7]} 6. Bd3 {[%emt 0:0:10]} Bd6 {[%emt 0:0:6]} 7. O-O {[%emt 0:0:30]} O-O {[%emt 0:0:6]} 8. c4 {[%emt 0:0:9]} c6 {[%emt 0:0:4]} 9. Re1 {[%emt 0:0:25]} Re8 {[%emt 0:0:39]} 10. Qb3 {[%emt 0:0:43] C42: Petroff Defence: 3 Nxe5 and unusual White 3rd moves.} h6 {[%emt 0:5:17]} 11. cxd5 {[%emt 0:1:59] A sharp opening} cxd5 {[%emt 0:0:6]} 12. Nc3 {[%emt 0:0:8] White is slightly better.} Nxc3 {[%emt 0:0:46]} 13. Rxe8+ {[%emt 0:0:9]} Qxe8 {[%emt 0:0:3]} 14. bxc3 {[%emt 0:0:10]} Qc6 {[%emt 0:0:3]} 15. Rb1 {[%emt 0:3:46]} b6 {[%emt 0:1:24]} 16. Bb5 {[%emt 0:8:46]} Qb7 {[%emt 0:0:1]} 17. Ba3 {[%emt 0:0:42]} Bxa3 {[%emt 0:0:7]} 18. Qxa3 {[%emt 0:0:8]} Bd7 $146 {[%emt 0:0:3]} (18... a6 19. Be8 Qc7 20. Ne5 Be6 21. f4 Qd8 22. Ba4 Bf5 23. Re1 Be4 24. c4 Ra7 {½-½ Haapamaeki,M (2324)-Heilala,T (2307) FIN-ch70 email 2019} )19. Qe7 {[%emt 0:0:16] [#] and Ne5 would now be decisive} Nc6 {[%emt 0:0:3]} 20. Qd6 {[%emt 0:0:5]} a6 {[%emt 0:0:3]} 21. Bxc6 {[%emt 0:0:8]} Bxc6 {[%emt 0:0:5] Black is weak on the dark squares} (21... Qxc6 {simplifies} 22. Qxc6 Bxc6 23. Rxb6 Bb5 )22. Ne5 {[%emt 0:0:23][%cal Yf3e5,Ye5d3,Yd3c5][%mdl 32]} Rc8 {[%emt 0:0:17]} 23. h4 {[%emt 0:0:3]} b5 {[%emt 0:0:44]} 24. Nd3 {[%emt 0:2:41]} Qc7 {[%emt 0:1:19]} 25. Qxc7 {[%emt 0:0:14]} Rxc7 $11 {[%emt 0:0:1][%mdl 4096] Endgame KRB-KRN} 26. Nc5 {[%emt 0:0:8]} a5 {[%emt 0:1:35]} 27. f3 {[%emt 0:1:50]} Ra7 {[%emt 0:2:57]} 28. Rb2 {[%emt 0:15:13]} Kf8 {[%emt 0:1:25]} 29. Kf2 {[%emt 0:2:4]} Ke7 {[%emt 0:0:15]} 30. Ke3 {[%emt 0:7:46]} Kd6 {[%emt 0:0:52] The position is equal.} 31. Kd2 {[%emt 0:0:26]} h5 {[%emt 0:17:54]} 32. Nd3 {[%emt 0:2:57]} f6 {[%emt 0:0:29]} 33. Rb1 {[%emt 0:0:16]} Be8 {[%emt 0:0:13]} 34. Re1 {[%emt 0:3:55]} Bg6 {[%emt 0:2:17]} 35. Nc5 {[%emt 0:2:25]} Bf5 {[%emt 0:8:34] Against Re6+} 36. Re8 {[%emt 0:10:44]} b4 $1 {[%emt 0:0:53]} 37. g3 {[%emt 0:18:54]} Kc6 {[%emt 0:8:58]} 38. Nd3 {[%emt 0:13:46]} Rb7 {[%emt 0:30:23]} 39. Ra8 {[%emt 0:0:29]} Bxd3 {[%emt 0:13:6]} 40. Kxd3 {[%emt 0:0:10] KR-KR} Kb6 {[%emt 0:0:9]} 41. Rd8 {[%emt 0:54:58]} Kc6 {[%emt 0:50:28] Inhibits Rd6+.} 42. g4 {[%emt 0:6:42]} bxc3 {[%emt 0:12:23]} 43. Rc8+ {[%emt 0:4:55]} Kd6 {[%emt 0:0:0]} 44. Kxc3 {[%emt 0:0:0]} Rb1 {[%emt 0:0:0] [#]} 45. Rg8 {[%emt 0:0:0]} (45. gxh5 $2 {is the wrong capture.} Rc1+ 46. Kd2 Rxc8 $19 )Rf1 {[%emt 0:0:0]} 46. gxh5 {[%emt 0:0:0]} Rxf3+ {[%emt 0:0:0]} 47. Kc2 {[%emt 0:0:0]} Rf4 {[%emt 0:0:0][%csl Yd4,Yh4]} 48. Kc3 {[%emt 0:0:0]} Rxh4 {[%emt 0:0:0]} 49. Rxg7 {[%emt 0:0:0]} Rxh5 {[%emt 0:0:0]} 50. Ra7 {[%emt 0:0:0]} Rh3+ {[%emt 0:0:0]} 51. Kb2 {[%emt 0:0:0]} Rd3 {[%emt 0:0:0]} 52. Ra6+ {[%emt 0:0:0]} Ke7 {[%emt 0:0:0]} 53. Rxa5 {[%emt 0:0:0]} Rxd4 {[%emt 0:0:0]} 54. Kc3 {[%emt 0:0:0]} Rc4+ {[%emt 0:0:0]} 55. Kd3 {[%emt 0:0:0]} Kd6 {[%emt 0:0:0]} 56. Ra8 {[%emt 0:0:0]} Ke5 {[%emt 0:0:0]} 57. a4 {[%emt 0:0:0][%cal Ya2a4,Ya4a5,Ya5a6][%mdl 32]} Rd4+ {[%emt 0:0:0]} 58. Kc3 {[%emt 0:0:0]} Rc4+ {[%emt 0:0:0]} 59. Kd3 {[%emt 0:0:0]} Rc6 {[%emt 0:0:0]} 60. a5 {[%emt 0:0:0]} Re6 {[%emt 0:0:0]} 61. a6 {[%emt 0:0:0]} f5 {[%emt 0:4:7]} 62. a7 {[%emt 0:0:0] Rd8 would kill now.} Re7 {[%emt 0:0:11]} 63. Ke3 {[%emt 0:0:0]} d4+ {[%emt 0:1:0][%cal Yd5d4,Yd4d3,Yd3d2][%mdl 32]} 64. Kd3 {[%emt 0:0:0]} f4 {[%emt 0:0:4]} 65. Rb8 {[%emt 0:0:0]} Rxa7 {[%emt 0:0:25]} 66. Rb5+ $1 {[%emt 0:0:0]} Kf6 {[%emt 0:0:48] Threatens to win with ...Re7.} 67. Ke4 {[%emt 0:0:0]} d3 {[%emt 0:2:17] ( -> ...Rd7)} 68. Kxf4 {[%emt 0:0:0]} Rd7 {[%emt 0:0:6]} 69. Rb6+ {[%emt 0:0:0]} Ke7 {[%emt 0:0:5] ( -> ...d2)} (69... Kf7 $5 70. Rb1 $8 Re7 $11 (70... d2 71. Rd1 $11 ))70. Rb1 $1 {[%emt 0:0:0]} d2 {[%emt 0:0:4]} 71. Rd1 {[%emt 0:0:0]} Kf6 {[%emt 0:0:3]} 72. Ke4 {[%emt 0:0:0]} Ke6 {[%emt 0:0:5]} 73. Kf4 {[%emt 0:0:0]} Rd4+ {[%emt 0:0:3]} (73... Rd3 $5 )74. Ke3 {[%emt 0:0:0]} Ke5 {[%emt 0:0:6]} 75. Rxd2 {[%emt 0:0:0]} Rxd2 {[%emt 0:0:5]} 76. Kxd2 {[%emt 0:0:2] Weighted Error Value: White=0.03 (flawless) /Black=0.02 (flawless)   Inaccurate:     	White=1     	---        OK:         	White=41    	Black=28     Best:        	White=2     	Black=2      Strong:       	White=2     	Black=1} 1/2-1/2